{"text_format":"1","workbook":"xlsx","n_sheets":3,"sheets":["Instruccions","Reformulació Pressupost Ab","Resum Pressupost"],"not_rendered":{"charts":0,"images":1,"macros":1,"external_links":0,"defined_names":7,"comments":1,"pivot_tables":0},"unopened":[],"bounds":{"document_bytes":16777216,"sheet_cells":100000,"rows_first":2000,"rows_last":500,"rows_between":2000,"halvings":0,"cell_chars":16384,"cell_head_chars":4096},"cells_cut":0,"cells_raw":0,"read":"whole","date_system":"1900"}

{"sheet":"Instruccions","index":0,"n_rows":18,"n_cols":10,"rows_kept":18,"cut":false,"hidden":false,"merged":[[16,1,16,17],[1,9,1,11],[2,2,3,17],[4,2,4,17],[6,2,6,17],[8,1,8,17],[9,1,9,17],[10,1,10,17],[12,1,12,17],[14,1,14,17]]}
[]
[null,null,null,null,null,null,null,null,null,"Doc_basic3_pressup_reformulat_Ab INSTRUCCIONS"]
[null,null,"SUBVENCIONS DE L’AJUNTAMENT DE BARCELONA PER L’ENFORTIMENT DE L’ECONOMIA SOCIAL I SOLIDÀRIA I PER LA INTERCOOPERACIÓ EN L’ESTRATÈGIA #ESSBCN2030 - ENFORTIM L’ESS 2025"]
[]
[null,null,"Aspectes rellevants relacionats amb la reformulació"]
[]
[null,null,"INSTRUCCIONS"]
[]
[null,"1. Emplenar només les cel·les en blanc de la pestanya  \"Reformulació Pressupost\" amb les dades econòmiques del projecte:"]
[null,"1.1  Emplenar els quadres DADES BÀSIQUES-PREVISIÓ DE DESPESES DEL PROJECTE SUBVENCIONABLE INICIAL, amb les dades econòmiques de la proposta inicial amb subvenció atorgada."]
[null,"1.2  Emplenar els quadres DADES BÀSIQUES-PREVISIÓ DE DESPESES DEL PROJECTE REFORMULAT, amb les dades econòmiques de la proposta de reformulació."]
[]
[null,"2. Revisar i emplenar només les cel·les en blanc de la pestanya  \"Resum Pressupost\" amb les dades econòmiques del projecte."]
[]
[null,"3. Imprimir els fulls de les 2 pestanyes (Reformulació pressupost i Resum Pressupost). En format pdf."]
[]
[null,"4. Si la sol·licitud es va presentar per via telemàtica, cal que registreu la documentació telemàticament dins la convocatòria específica com annexió de documents addicionals i feu servir el número de tràmit que el sistema de registre us va donar en el moment de la presentació de la sol·licitud de la subvenció."]
[null,"Enllaç per realitzar el tràmit."]

{"sheet":"Reformulació Pressupost Ab","index":1,"n_rows":117,"n_cols":15,"rows_kept":117,"cut":false,"hidden":false,"merged":[[10,0,10,3],[10,6,10,9],[1,1,1,10],[3,0,3,14],[6,1,6,9],[7,1,7,9],[8,1,8,9],[4,0,4,14],[113,0,113,14],[114,0,114,14],[12,7,12,9],[13,7,13,9],[11,1,11,3],[12,1,12,3],[13,1,13,3],[11,7,11,9],[16,12,16,14],[14,1,14,3],[16,0,16,4],[14,7,14,9],[16,6,16,10],[14,10,14,12],[115,0,115,14],[116,0,116,14],[99,0,99,14],[100,0,100,14],[101,0,101,14],[102,0,102,14],[103,0,103,14],[104,0,104,14],[105,0,105,14],[106,0,106,14],[107,0,107,14],[108,0,108,14],[109,0,109,14],[110,0,110,14],[111,0,111,14],[112,0,112,14]]}
[]
[null,"Reformulació pressupost Modalitat Ab"]
[]
["Programa de subvencions de l'Ajuntament de Barcelona per l'enfortiment de l'Economia Social i Solidària i per la intercooperació en l'Estratègia #ESSBCN2030 - ENFORTIM L’ESS 2025"]
["EMPLENAR NOMÉS LES CEL·LES EN BLANC"]
[]
["Nom de la persona jurídica"]
["NIF de la persona jurídica"]
["Nom del projecte subvencionable"]
[]
["DADES BÀSIQUES DEL PROJECTE INICIAL SOL·LICITAT\n(indicar les dades sol·licitades a la proposta inicial)",null,null,null,null,null,"DADES BÀSIQUES PROJECTE REFORMULAT"]
["Import total del projecte subvencionable",null,null,null,null,null,"Import total del projecte REFORMULAT",null,null,null,{"$f":"IF(H12<B12*0.7,\"No es pot reformular més d'un 30%\",\"\")","v":""}]
["Import imputable a la subvenció municipal",null,null,null,null,null,"Import imputable a la subvenció ATORGADA\n(indicar l'import atorgat a la resolució)"]
["Import de l'aportació i/o cofinançament de l'organització",{"$f":"+B12-B13","v":0},null,null,null,null,"Import de l'aportació i/o cofinançament de l'organització",{"$f":"H12-H13","v":0}]
["% de l'import sol·licitat respecte el total del projecte subvencionable (màxim 80%*)",{"$f":"IF(B13>11,B13/B12,\"\")","v":""},null,null,"* La quantia de la subvenció atorgada no superarà el 80% de la despesa total del projecte a subvencionar. ",null,"% de l'import sol·licitat respecte el total del projecte subvencionable (màxim 80%*)\n(ha de ser igual o inferior respecte el % de la sol·licitud inicial)",{"$f":"IF(H13>11,H13/H12,\"\")","v":""},null,null,{"$f":"IF(H15=\"\",\"\",IF(H15>0.8,\"La quantia de la subvenció atorgada no pot superar el 80% de la despesa total del projecte\",IF(H15>B15,\"Ha de ser igual o inferior al % de la proposta inicial\",\"\")))","v":""}]
[]
["PREVISIÓ DE DESPESES DEL PROJECTE SUBVENCIONABLE INICIAL",null,null,null,null,null,"PREVISIÓ DE DESPESES DEL PROJECTE REFORMULAT",null,null,null,null,null,"DIFERÈNCIA REFORMULACIÓ I PROJECTE INICIAL"]
[]
["Partides","Import imputable a la subvenció municipal","% subvenció / total","Import de l'aportació i/o Cofinançament de l'organització","Import total del projecte",null,"Partides","Import imputable a la subvenció municipal","% subvenció / total","Import de l'aportació i/o Cofinançament de l'organització","Import total del projecte",null,"Import imputable a la subvenció municipal","Import de l'aportació i/o Cofinançament de l'organització","Import total del projecte"]
["D1. Nòmines i seguretat social IRPF (règim general o socis/es cooperativistes en règim d’autònoms) del personal propi  vinculat al projecte subvencionable (màxim 25% import subvenció)",{"$f":"SUM(B21:B25)","v":0},{"$f":"IF(B20>0,B20/$B$13,0)","v":0},{"$f":"SUM(D21:D25)","v":0},{"$f":"B20+D20","v":0},null,"D1. Nòmines i seguretat social IRPF (règim general o socis/es cooperativistes en règim d’autònoms) del personal propi  vinculat al projecte subvencionable (màxim 25% import subvenció)",{"$f":"SUM(H21:H25)","v":0},{"$f":"IF(H20>0,H20/$H$13,0)","v":0},{"$f":"SUM(J21:J25)","v":0},{"$f":"+H20+J20","v":0},null,{"$f":"B20-H20","v":0},{"$f":"D20-J20","v":0},0]
[null,null,null,null,0,null,null,null,null,null,0,null,{"$f":"B21-H21","v":0},0,0]
[null,null,null,null,0,null,null,null,null,null,0,null,{"$f":"B22-H22","v":0},0,0]
[null,null,null,null,0,null,null,null,null,null,0,null,0,0,0]
[null,null,null,null,0,null,null,null,null,null,0,null,0,0,0]
[null,null,null,null,0,null,null,null,null,null,0,null,0,0,0]
["D2. Nòmines i seguretat social d’estudiants en pràctiques (amb un límit del 80% del seu sou brut corresponent al període de l’execució de la subvenció) - excepte si la seguretat social està bonificada",{"$f":"SUM(B27:B31)","v":0},{"$f":"IF(B26>0,B26/$B$13,0)","v":0},{"$f":"SUM(D27:D31)","v":0},0,null,"D2. Nòmines i seguretat social d’estudiants en pràctiques (amb un límit del 80% del seu sou brut corresponent al període de l’execució de la subvenció) - excepte si la seguretat social està bonificada",{"$f":"SUM(H27:H31)","v":0},{"$f":"IF(H26>0,H26/$H$13,0)","v":0},{"$f":"SUM(J27:J31)","v":0},0,null,{"$f":"B26-H26","v":0},{"$f":"D26-J26","v":0},0]
[null,null,null,null,0,null,null,null,null,null,0,null,{"$f":"B27-H27","v":0},0,0]
[null,null,null,null,0,null,null,null,null,null,0,null,0,0,0]
[null,null,null,null,0,null,null,null,null,null,0,null,0,0,0]
[null,null,null,null,0,null,null,null,null,null,0,null,0,0,0]
[null,null,null,null,0,null,null,null,null,null,0,null,0,0,0]
["TOTAL DE DESPESES DEL PERSONAL ",{"$f":"B20+B26","v":0},{"$f":"IF(B32>0,B32/$B$13,0)","v":0},{"$f":"D20+D26","v":0},0,null,"TOTAL DE DESPESES DEL PERSONAL ",{"$f":"H20+H26","v":0},{"$f":"IF(H32>0,H32/$H$13,0)","v":0},{"$f":"J20+J26","v":0},0,null,{"$f":"B32-H32","v":0},{"$f":"D32-J32","v":0},0]
["D3. Treballs realitzats per professionals i empreses externes directament vinculades al projecte (inclou despeses de l'estudiant en pràctiques: taxes i altres despeses relacionades amb el conveni de pràctiques)",{"$f":"SUM(B34:B38)","v":0},{"$f":"IF(B33>0,B33/$B$13,0)","v":0},{"$f":"SUM(D34:D38)","v":0},{"$f":"B33+D33","v":0},null,"D3. Treballs realitzats per professionals i empreses externes directament vinculades al projecte (inclou despeses de l'estudiant en pràctiques: taxes i altres despeses relacionades amb el conveni de pràctiques)",{"$f":"SUM(H34:H38)","v":0},{"$f":"IF(H33>0,H33/$H$13,0)","v":0},{"$f":"SUM(J34:J38)","v":0},{"$f":"+H33+J33","v":0},null,0,{"$f":"D33-J33","v":0},0]
[null,null,null,null,0,null,null,null,null,null,0,null,0,0,0]
[null,null,null,null,0,null,null,null,null,null,0,null,0,0,0]
[null,null,null,null,0,null,null,null,null,null,0,null,0,0,0]
[null,null,null,null,0,null,null,null,null,null,0,null,0,0,0]
[null,null,null,null,0,null,null,null,null,null,0,null,0,0,0]
["D4. Despeses de matriculació en accions formatives externes amb una durada mínima de 150 hores i/o un cost mínim de 600€ per a cada participant",{"$f":"SUM(B40:B44)","v":0},{"$f":"IF(B39>0,B39/$B$13,0)","v":0},{"$f":"SUM(D40:D44)","v":0},0,null,"D4. Despeses de matriculació en accions formatives externes amb una durada mínima de 150 hores i/o un cost mínim de 600€ per a cada participant",{"$f":"SUM(H40:H44)","v":0},{"$f":"IF(H39>0,H39/$H$13,0)","v":0},{"$f":"SUM(J40:J44)","v":0},{"$f":"H39+J39","v":0},null,{"$f":"B39-H39","v":0},{"$f":"D39-J39","v":0},0]
[null,null,null,null,0,null,null,null,null,null,0,null,{"$f":"B40-H40","v":0},0,0]
[null,null,null,null,0,null,null,null,null,null,0,null,0,0,0]
[null,null,null,null,0,null,null,null,null,null,0,null,0,0,0]
[null,null,null,null,0,null,null,null,null,null,0,null,0,0,0]
[null,null,null,null,0,null,null,null,null,null,{"$f":"+H44+J44","v":0},null,0,0,0]
["TOTAL D'ALTRES DESPESES DIRECTES ",{"$f":"B33+B39","v":0},{"$f":"IF(B45>0,B45/$B$13,0)","v":0},{"$f":"D33+D39","v":0},0,null,"TOTAL D'ALTRES DESPESES DIRECTES ",{"$f":"H33+H39","v":0},{"$f":"IF(H45>0,H45/$H$13,0)","v":0},{"$f":"J33+J39","v":0},0,null,{"$f":"B45-H45","v":0},{"$f":"D45-J45","v":0},0]
["TOTAL DESPESES DIRECTES (aquelles que s’identifiquen directament amb el projecte subvencionable)",{"$f":"SUM(B32,B45)","v":0},{"$f":"IF(B46>0,B46/$B$13,0)","v":0},{"$f":"SUM(D32,D45)","v":0},{"$f":"E32+E45","v":0},null,"TOTAL DESPESES DIRECTES (aquelles que s’identifiquen directament amb el projecte subvencionable)",{"$f":"SUM(H32,H45)","v":0},{"$f":"IF(H46>0,H46/$H$13,0)","v":0},{"$f":"SUM(J32,J45)","v":0},{"$f":"K32+K45","v":0},null,0,{"$f":"D46-J46","v":0},0]
["I1. Personal de suport al projecte (nòmines i seguretat social) ",{"$f":"SUM(B48:B51)","v":0},null,{"$f":"SUM(D48:D51)","v":0},{"$f":"+B47+D47","v":0},null,"I1. Personal de suport al projecte (nòmines i seguretat social) ",{"$f":"SUM(H48:H51)","v":0},null,{"$f":"SUM(J48:J51)","v":0},{"$f":"+H47+J47","v":0},null,0,{"$f":"D47-J47","v":0},0]
[null,null,null,null,0,null,null,null,null,null,0,null,0,0,0]
[null,null,null,null,0,null,null,null,null,null,0,null,0,0,0]
[null,null,null,null,0,null,null,null,null,null,0,null,0,0,0]
[null,null,null,null,0,null,null,null,null,null,0,null,0,0,0]
["I2. Assegurances",{"$f":"SUM(B53:B56)","v":0},null,{"$f":"SUM(D53:D56)","v":0},0,null,"I2. Assegurances",{"$f":"SUM(H53:H56)","v":0},null,{"$f":"SUM(J53:J56)","v":0},0,null,{"$f":"B52-H52","v":0},{"$f":"D52-J52","v":0},0]
[null,null,null,null,0,null,null,null,null,null,0,null,{"$f":"B53-H53","v":0},0,0]
[null,null,null,null,0,null,null,null,null,null,0,null,0,0,0]
[null,null,null,null,0,null,null,null,null,null,0,null,0,0,0]
[null,null,null,null,0,null,null,null,null,null,0,null,0,0,0]
["I3. Amortització",{"$f":"SUM(B58:B61)","v":0},null,{"$f":"SUM(D58:D61)","v":0},0,null,"I3. Amortització",{"$f":"SUM(H58:H61)","v":0},null,{"$f":"SUM(J58:J61)","v":0},0,null,{"$f":"B57-H57","v":0},{"$f":"D57-J57","v":0},0]
[null,null,null,null,0,null,null,null,null,null,0,null,{"$f":"B58-H58","v":0},0,0]
[null,null,null,null,0,null,null,null,null,null,0,null,0,0,0]
[null,null,null,null,0,null,null,null,null,null,0,null,0,0,0]
[null,null,null,null,0,null,null,null,null,null,0,null,0,0,0]
["I4. Lloguer de béns immobles",{"$f":"SUM(B63:B66)","v":0},null,{"$f":"SUM(D63:D66)","v":0},0,null,"I4. Lloguer de béns immobles",{"$f":"SUM(H63:H66)","v":0},null,{"$f":"SUM(J63:J66)","v":0},0,null,{"$f":"B62-H62","v":0},{"$f":"D62-J62","v":0},0]
[null,null,null,null,0,null,null,null,null,null,0,null,{"$f":"B63-H63","v":0},0,0]
[null,null,null,null,0,null,null,null,null,null,0,null,0,0,0]
[null,null,null,null,0,null,null,null,null,null,0,null,0,0,0]
[null,null,null,null,0,null,null,null,null,null,0,null,0,0,0]
["I5. Adquisició de materials i béns consumibles parcialment imputables al projecte",{"$f":"SUM(B68:B71)","v":0},null,{"$f":"SUM(D68:D71)","v":0},0,null,"I5. Adquisició de materials i béns consumibles parcialment imputables al projecte",{"$f":"SUM(H68:H71)","v":0},null,{"$f":"SUM(J68:J71)","v":0},0,null,{"$f":"B67-H67","v":0},{"$f":"D67-J67","v":0},0]
[null,null,null,null,0,null,null,null,null,null,0,null,{"$f":"B68-H68","v":0},0,0]
[null,null,null,null,0,null,null,null,null,null,0,null,0,0,0]
[null,null,null,null,0,null,null,null,null,null,0,null,0,0,0]
[null,null,null,null,0,null,null,null,null,null,0,null,0,0,0]
["I6. Manteniment d’edificis i/o instal·lacions",{"$f":"SUM(B73:B76)","v":0},null,{"$f":"SUM(D73:D76)","v":0},0,null,"I6. Manteniment d’edificis i/o instal·lacions",{"$f":"SUM(H73:H76)","v":0},null,{"$f":"SUM(J73:J76)","v":0},0,null,{"$f":"B72-H72","v":0},{"$f":"D72-J72","v":0},0]
[null,null,null,null,0,null,null,null,null,null,0,null,{"$f":"B73-H73","v":0},0,0]
[null,null,null,null,0,null,null,null,null,null,0,null,0,0,0]
[null,null,null,null,0,null,null,null,null,null,0,null,0,0,0]
[null,null,null,null,0,null,null,null,null,null,0,null,0,0,0]
["I7. Comunicacions (telèfon, correus, connexió a internet)",{"$f":"SUM(B78:B81)","v":0},null,{"$f":"SUM(D78:D81)","v":0},0,null,"I7. Comunicacions (telèfon, correus, connexió a internet)",{"$f":"SUM(H78:H81)","v":0},null,{"$f":"SUM(J78:J81)","v":0},0,null,{"$f":"B77-H77","v":0},{"$f":"D77-J77","v":0},0]
[null,null,null,null,0,null,null,null,null,null,0,null,{"$f":"B78-H78","v":0},0,0]
[null,null,null,null,0,null,null,null,null,null,0,null,0,0,0]
[null,null,null,null,0,null,null,null,null,null,0,null,0,0,0]
[null,null,null,null,0,null,null,null,null,null,0,null,0,0,0]
["I8. Despeses financeres",{"$f":"SUM(B83:B86)","v":0},null,{"$f":"SUM(D83:D86)","v":0},0,null,"I8. Despeses financeres",{"$f":"SUM(H83:H86)","v":0},null,{"$f":"SUM(J83:J86)","v":0},0,null,{"$f":"B82-H82","v":0},{"$f":"D82-J82","v":0},0]
[null,null,null,null,0,null,null,null,null,null,0,null,{"$f":"B83-H83","v":0},0,0]
[null,null,null,null,0,null,null,null,null,null,0,null,0,0,0]
[null,null,null,null,0,null,null,null,null,null,0,null,0,0,0]
[null,null,null,null,0,null,null,null,null,null,0,null,0,0,0]
["I9. Subministraments",{"$f":"SUM(B88:B91)","v":0},null,{"$f":"SUM(D88:D91)","v":0},0,null,"I9. Subministraments",{"$f":"SUM(H88:H91)","v":0},null,{"$f":"SUM(J88:J91)","v":0},0,null,{"$f":"B87-H87","v":0},{"$f":"D87-J87","v":0},0]
[null,null,null,null,0,null,null,null,null,null,0,null,{"$f":"B88-H88","v":0},0,0]
[null,null,null,null,0,null,null,null,null,null,0,null,0,0,0]
[null,null,null,null,0,null,null,null,null,null,0,null,0,0,0]
[null,null,null,null,0,null,null,null,null,null,0,null,0,0,0]
["I10. Treball realitzat per altres empreses, parcialment imputables al projecte (neteja, seguretat...)",{"$f":"SUM(B93:B96)","v":0},null,{"$f":"SUM(D93:D96)","v":0},0,null,"I10. Treball realitzat per altres empreses, parcialment imputables al projecte (neteja, seguretat...)",{"$f":"SUM(H93:H96)","v":0},null,{"$f":"SUM(J93:J96)","v":0},0,null,{"$f":"B92-H92","v":0},{"$f":"D92-J92","v":0},0]
[null,null,null,null,0,null,null,null,null,null,0,null,{"$f":"B93-H93","v":0},0,0]
[null,null,null,null,0,null,null,null,null,null,0,null,0,0,0]
[null,null,null,null,0,null,null,null,null,null,0,null,0,0,0]
[null,null,null,null,0,null,null,null,null,null,0,null,0,0,0]
["TOTAL DESPESES INDIRECTES (es podran assignar al projecte subvencionable fent sevir un percentatge d’assignació) - Màxim 10% de l’import imputable a la subvenció municipal",{"$f":"SUM(B47,B52,B57,B62,B67,B72,B77,B82,B87,B92)","v":0},{"$f":"IF(B97>0,B97/$B$13,0)","v":0},{"$f":"SUM(D47,D52,D57,D62,D67,D72,D77,D82,D87,D92)","v":0},{"$f":"E47+E52+E57+E62+E67+E72+E77+E82+E87+E92","v":0},null,"TOTAL DESPESES INDIRECTES (es podran assignar al projecte subvencionable fent sevir un percentatge d’assignació) - Màxim 10% de l’import imputable a la subvenció municipal",{"$f":"SUM(H47,H52,H57,H62,H67,H72,H77,H82,H87,H92)","v":0},{"$f":"IF(H97>0,H97/$H$13,0)","v":0},{"$f":"SUM(J47,J52,J57,J62,J67,J72,J77,J82,J87,J92)","v":0},{"$f":"K47+K52+K57+K62+K67+K72+K77+K82+K87+K92","v":0},{"$f":"+IF(H97>H13*0.1,\"ALERTA: Màxim 10% import imputable a la subvenció municipal\", \" \")","v":" "},{"$f":"B97-H97","v":0},{"$f":"D97-J97","v":0},0]
["TOTAL DE DESPESES PREVISTES",{"$f":"SUM(B46+B97)","v":0},{"$f":"IF(B98>0,B98/$B$13,0)","v":0},{"$f":"SUM(D46+D97)","v":0},0,null,"TOTAL DE DESPESES PREVISTES",{"$f":"SUM(H46+H97)","v":0},{"$f":"IF(H98>0,H98/$H$13,0)","v":0},{"$f":"SUM(J46+J97)","v":0},0,null,0,{"$f":"D98-J98","v":0},0]
[null,{"$f":"IF(B98>B13,\"La suma del detall de despeses no pot ser superior a l'import total de subvenció municipal indicat al requadre\",(IF(B98<B13,\"La suma del detall de despeses no pot ser inferior a l'import total de subvenció municipal indicat al requadre\",\"\")))","v":""},null,{"$f":"IF(D98>B14,\"La suma del detall de despeses no pot ser superior a l'import total de l'aportació/confinançament indicat al requadre\",(IF(D98<B14,\"La suma del detall de despeses no pot ser inferior a l'import total de l'aportació/confinançament indicat al requadre\",\"\")))","v":""},{"$f":"IF(E98>B12,\"La suma del detall de despeses no pot ser superior a l'import total del projecte indicat al requadre\",(IF(E98<B12,\"La suma del detall de despeses no pot ser inferior a l'import total del projecte indicat al requadre\",\"\")))","v":""},null,null,{"$f":"IF(H98>H13,\"La suma del detall de despeses no pot ser superior a l'import total de subvenció municipal indicat al requadre\",(IF(H98<H13,\"La suma del detall de despeses no pot ser inferior a l'import total de subvenció municipal indicat al requadre\",\"\")))","v":""},null,{"$f":"IF(J98>H14,\"La suma del detall de despeses no pot ser superior a l'import total de l'aportació/confinançament indicat al requadre\",(IF(J98<H14,\"La suma del detall de despeses no pot ser inferior a l'import total de l'aportació/confinançament indicat al requadre\",\"\")))","v":""},{"$f":"IF(K98>H12,\"La suma del detall de despeses no pot ser superior a l'import total del projecte indicat al requadre\",(IF(K98<H12,\"La suma del detall de despeses no pot ser inferior a l'import total del projecte indicat al requadre\",\"\")))","v":""}]
["Modalitat Ab: Accions de consolidació empresarial i escalabilitat de les iniciatives d’Economia Social i Solidària per enfortir la seva viabilitat econòmica, així com l’ orientació d’aquesta consolidació a l’Acord i Estratègia #ESSBCN2030 i als objectius estratègics del PIESS 2024-2027"]
["1.  La quantia de la subvenció atorgada no superarà el 80% de la despesa total del projecte a subvencionar. "]
["2.  L'import màxim de subvenció per a la modalitat Ab és 9.000€."]
["3.  En el cas que la sol·licitud presentada sobrepassi l’import màxim, es considerarà com a import sol·licitat el màxim de l'establert a la convocatòria."]
["4.  Es limita amb un màxim del 25% l’import de la subvenció per a despeses de personal propi que participa de forma directa i degudament al projecte. I un màxim del 80% per nòmines i seguretat social d’estudiants en pràctiques (sou brut corresponent al període de l’execució de la subvenció) - excepte si la seguretat social està bonificada."]
["5. En cap cas es consideraran despeses subvencionables:\n> Els impostos indirectes quan siguin susceptibles de recuperació o compensació.\n>  Les despeses d'inversió, incloses les adquisicions de béns mobles.\n> Les despeses realitzades amb data anterior a l'inici del projecte i data posterior a la finalització del projecte.\n> Altres despeses que s'indiquin a la convocatòria."]
["6.  Són imputables en aquesta modalitat les despeses indirectes, detallades en l’apartat 13.3. de les bases reguladores; amb un màxim del 10% de l'import de la subvenció."]
["7. La retribució de les persones contractades en el marc del projecte subvencionat no pot ser inferior al Salari Mínim Interprofessional (SMI), ni a l'estipulada al corresponent conveni o marc normatiu de referència (punt 7 de les bases 2025: requisits dels projectes)."]
["8. Els materials produïts de difusió, estudis, informes o materials didàctics utilitzats, etc. en el cas de tractar-se de despesa elegible de la subvenció, hauran de tenir llicència Creative Commons -Compartir Igual- (share a like)  i no podrà tenir la condició –Sense Obres Derivades- (no derivate Works)."]
["9. Els projectes subvencionats han de fomentar activitats d'interès públic o social, les quals han de ser gratuïtes per a les persones participants o en cap cas el preu ha de suposar un obstacle per a la seva participació, buscant altres formes d'accés per a persones amb dificultats econòmiques. En el cas que hi hagi algun tipus de lucre, haurà de revertir en les pròpies activitats subvencionades."]
["10. L'Ajuntament de Barcelona i les seves entitats municipals en cap cas subvencionaran el mateix projecte, executat durant el mateix període, per cap altre procediment de concessió que no sigui el regulat per les bases reguladores."]
["11. El/la beneficiari/ària no podrà alterar en cap cas el destí de les subvencions concedides."]
["12. El programa de pràctiques de l’alumne/a ha de ser d’una durada mínima de 400 hores o superior."]
["13. Només pot presentar-se una sol·licitud per un lloc de pràctiques per organització sol·licitant."]
["14. Caldrà remunerar l’alumne/a en pràctiques universitàries (curriculars o extracurriculars) amb un cost brut hora mínim de 6€/hora o superior."]
["15. Caldrà remunerar l’alumne/a segons la modalitat d’FP dual escollida com a mínim d’acord amb la normativa específica que estableix el Departament d’Educació de la Generalitat de Catalunya o superior. "]
["16. No es poden imputar en cap cas despeses d’inversió, corresponents a partides de l'immobilitzat, amb els diners de la subvenció atorgada en aquesta convocatòria específica. Sí que es poden imputar a la part  de contribució, sempre que siguin despeses dins el període executiu del projecte subvencionat i acreditables tal i com es descriu a les bases reguladores vigents."]
["17. En el cas de presentar tiquets, el seu import no podrà superar el 10% de la subvenció i aniran acompanyats d'una declaració responsable del representant legal de la  persona jurídica o de l'agrupació de persones jurídiques que indicarà en quin concepte s'imputa aquesta despesa."]

{"sheet":"Resum Pressupost","index":2,"n_rows":27,"n_cols":12,"rows_kept":27,"cut":false,"hidden":false,"merged":[[1,2,2,8],[3,0,3,9],[5,0,5,1],[6,0,7,1],[6,2,7,3],[6,4,7,5],[26,7,26,10],[6,7,7,8],[6,9,7,9],[6,10,7,10],[9,7,10,7],[9,8,10,8],[9,9,10,9],[9,10,10,10],[12,7,13,7],[12,8,13,8],[12,9,13,9],[12,10,13,10],[21,7,21,8],[14,0,15,1],[14,2,15,3],[14,4,15,5],[10,3,11,3],[10,0,11,0],[10,1,11,1],[10,2,11,2],[10,4,11,4],[10,5,11,5]]}
[]
[null,null,"Resum pressupost Ab"]
[]
["Subvencions de l'Ajuntament de Barcelona per l'enfortiment de l'Economia Social i Solidària i per la intercooperació en l'Estratègia #ESSBCN2030 - ENFORTIM L’ESS 2025",null,null,null,null,null,null,null,null,null,"MODALITAT Ab"]
[]
["DESPESES PREVISTES",null,"SOL·LICITUD INICIAL","REFORMULACIÓ","SOL·LICITUD INICIAL","REFORMULACIÓ",null,"INGRESSOS PREVISTOS",null,"SOL·LICITUD INICIAL","REFORMULACIÓ"]
["Despeses directes \n(aquelles que s'identifiquen directament amb el projecte)",null,"Cost total",null,"Subvenció",null,null,"Ingressos previstos",null,"Previsió inicial ingrés total","Previsió reformulada ingrés total"]
[]
["Ab","D1. Nòmines i seguretat social IRPF (règim general o socis/es cooperativistes en règim d’autònoms) del personal propi  vinculat al projecte subvencionable (màxim 25% import subvenció)",{"$f":"+'Reformulació Pressupost Ab'!E20","v":0},{"$f":"+'Reformulació Pressupost Ab'!K20","v":0},{"$f":"+'Reformulació Pressupost Ab'!B20","v":0},{"$f":"+'Reformulació Pressupost Ab'!H20","v":0},{"$f":"+IF(E9<0,\"No s'admeten valors negatius\",\"\")","v":""},"A.","Subvenció municipal (import sol·licitat a la instància/atorgat)",{"$f":"'Reformulació Pressupost Ab'!B13","v":0},{"$f":"'Reformulació Pressupost Ab'!H13","v":0}]
[null,"D2. Nòmines i seguretat social d’estudiants en pràctiques (amb un límit del 80% del seu sou brut corresponent al període de l’execució de la subvenció) - excepte si la seguretat social està bonificada",{"$f":"+'Reformulació Pressupost Ab'!E26","v":0},{"$f":"+'Reformulació Pressupost Ab'!K26","v":0},{"$f":"+'Reformulació Pressupost Ab'!B26","v":0},{"$f":"+'Reformulació Pressupost Ab'!H26","v":0},null,"B.","Subvencions d'altres administracions"]
[null,"D3. Treballs realitzats per professionals i empreses externes directament vinculades al projecte (inclou despeses de l'estudiant en pràctiques: taxes i altres despeses relacionades amb el conveni de pràctiques)",{"$f":"+'Reformulació Pressupost Ab'!E33","v":0},{"$f":"+'Reformulació Pressupost Ab'!K33","v":0},{"$f":"+'Reformulació Pressupost Ab'!B33","v":0},{"$f":"+'Reformulació Pressupost Ab'!H33","v":0},null,null,null,null,null,{"$f":"+IF(K11<0,\"No s'admeten valors negatius\",\"\")","v":""}]
[null,null,null,null,null,null,{"$f":"+IF(E11<0,\"No s'admeten valors negatius\",\"\")","v":""},"C.","Subvencions d'ens privats",null,null,""]
[null,"D4. Despeses de matriculació en accions formatives externes amb una durada mínima de 150 hores i/o un cost mínim de 600€ per a cada participant",{"$f":"+'Reformulació Pressupost Ab'!E39","v":0},{"$f":"+'Reformulació Pressupost Ab'!K39","v":0},{"$f":"+'Reformulació Pressupost Ab'!B39","v":0},{"$f":"+'Reformulació Pressupost Ab'!H39","v":0},null,"D.","Recursos propis de l'organització aplicats al projecte"]
[null,"Total Despeses Directes   ",{"$f":"SUM(C9:C13)","v":0},{"$f":"SUM(D9:D13)","v":0},0,0,{"$f":"+IF(E12<0,\"No s'admeten valors negatius\",\"\")","v":""}]
["Despeses indirectes (màxim 10% subvenció)",null,"Indirectes inicial total",null,"Indirectes inicial subvenció",null,{"$f":"+IF(E14<0,\"No s'admeten valors negatius\",\"\")","v":""},"E.","Taquillatge"]
[null,null,null,null,null,null,null,"F.","Quotes d'inscripció"]
[null,"Total Despeses Indirectes   ",{"$f":"'Reformulació Pressupost Ab'!E97","v":0},{"$f":"'Reformulació Pressupost Ab'!K97","v":0},{"$f":"'Reformulació Pressupost Ab'!B97","v":0},{"$f":"'Reformulació Pressupost Ab'!H97","v":0},null,"G.","Venda de Productes"]
[null,"Total Despeses ",{"$f":"+C14+C17","v":0},{"$f":"+D14+D17","v":0},0,0,null,"H","Publicitat i/o Esponsorització"]
[null,null,null,null,null,null,null,"I.","Altres ingressos"]
[null,null,null,null,null,null,null,null,"Total Ingressos",{"$f":"SUM(J9:J19)","v":0},0]
[]
[null,null,null,null,null,null,null,"Ingressos menys despeses ",null,{"$f":"+J20-C18","v":0},{"$f":"+K20-D18","v":0}]
[]
[null,null,null,null,null,null,null,null,null,"% subvencionat inicialment",{"$f":"IF(J9>0,J9/C18,\"\")","v":""}]
[]
[null,null,null,null,null,null,null,null,null,"% subvencionat després de reformular",{"$f":"IF(K9>9,K9/D18,\"\")","v":""},"*"]
[null,null,null,null,null,null,null,"*Aquest percentatge ha de ser igual o menor al percentatge subvencionat inicialment."]